bitfinex-derivatives/quotes_SOLF0:USTF0_20240926
["timestamp","ask_amount","ask_price","bid_price","bid_amount"]
[1727322788136,10.28,149.28,149.23,10.28]
[1727322788338,10.28,149.29,149.24,10.28]
[1727322788635,10.28,149.32,149.27,10.28]
[1727322788838,10.28,149.32,149.22,4.47283691]
[1727322788839,10.28,149.32,149.26,10.28]
[1727322789137,3.3496,149.3,149.23,3.3509]
[1727322789327,3.3496,149.3,149.26,10.28]
[1727322790634,3.3492,149.31,149.28,10.28]
[1727322792035,3.3494,149.3,149.26,10.28]
[1727322792339,3.3494,149.3,149.25,3.3504]
[1727322792535,3.3494,149.3,149.26,10.28]
[1727322794538,3.3494,149.3,149.25,13.6305]
[1727322796237,3.3494,149.3,149.27,10.28]
[1727322796434,13.6294,149.3,149.27,10.28]
[1727322796640,3.3495,149.3,149.27,10.28]
[1727322796840,1.3153,149.43,149.29,10.28]
[1727322797039,10.28,149.34,149.29,10.28]
[1727322797342,10.28,149.32,149.22,53.99309947]
[1727322797645,10.28,149.32,149.27,10.28]
[1727322798144,3.3492,149.31,149.27,10.28]
[1727322799437,13.6295,149.3,149.26,3.3502]
[1727322799638,13.6295,149.3,149.26,13.6302]
[1727322800435,10.28,149.3,149.26,10.28]
[1727322800645,10.28,149.31,149.27,10.28]
[1727322802046,10.28,149.32,149.27,13.63]
[1727322802260,1.3024,149.41,149.3,10.28]
[1727322802447,10.28,149.35,149.3,10.28]
[1727322802642,13.6289,149.33,149.3,10.28]
[1727322802837,10.28,149.33,149.29,10.28]
[1727322803143,10.28,149.32,149.28,10.28]
[1727322803945,13.6291,149.32,149.28,10.28]
[1727322806344,3.36538749,149.36,149.29,10.28]
[1727322806647,3.36538749,149.36,149.24,80.4]
[1727322806648,10.28,149.34,149.3,10.28]
[1727322808751,3.3488,149.33,149.3,10.28]
[1727322809646,3.3488,149.33,149.24,80.4]
[1727322809647,3.349,149.32,149.28,3.3498]
[1727322809851,13.629,149.32,149.28,13.6298]
[1727322810550,3.3493,149.31,149.27,3.35]
[1727322810753,10.28,149.32,149.24,80.4]
[1727322810754,10.28,149.32,149.28,10.28]
[1727322810951,3.3496,149.29,149.26,3.3502]
[1727322811254,3.3496,149.29,149.26,10.28]
[1727322811454,10.28,149.31,149.26,10.28]
[1727322812250,3.3498,149.29,149.26,10.28]
[1727322812854,3.3498,149.29,149.27,10.28]
[1727322813454,3.3498,149.29,149.25,3.3505]
[1727322813962,3.3498,149.29,149.27,10.28]
[1727322814562,3.3498,149.29,149.28,10.28]
[1727322816156,10.28,149.33,149.22,134.39309947]
[1727322816362,3.32595819,149.34,149.24,3.3507]
[1727322816363,3.3502,149.27,149.24,3.3507]
[1727322816663,10.28,149.3,149.26,10.28]
[1727322817462,10.28,149.3,149.25,10.28]
[1727322817656,3.3503,149.26,149.25,10.28]
[1727322817959,3.3503,149.26,149.24,10.28]
[1727322818961,3.3503,149.26,149.23,3.3509]
[1727322819263,3.3503,149.26,149.25,10.28]
[1727322821762,3.3502,149.27,149.25,10.28]
[1727322821957,1.3992,149.32,149.26,10.28]
[1727322822158,11.6792,149.32,149.27,10.28]
[1727322822354,3.3499,149.29,149.27,10.28]
[1727322822662,3.3499,149.29,149.26,13.6302]
[1727322822858,3.3499,149.28,149.26,10.28]
[1727322824258,3.3501,149.27,149.25,10.28]
[1727322826663,3.3501,149.27,149.24,13.6307]
[1727322827860,3.3503,149.26,149.24,13.6307]
[1727322828062,3.3503,149.26,149.23,13.6309]
[1727322828862,3.3503,149.26,149.24,3.3508]
[1727322829061,3.3502,149.27,149.24,3.3508]
[1727322829365,1.3992,149.32,149.25,3.3503]
[1727322829560,10.28,149.3,149.26,10.28]
[1727322829957,3.35,149.28,149.26,10.28]
[1727322832772,3.3499,149.28,149.26,10.28]
[1727322833765,11.6792,149.32,149.27,10.28]
[1727322835572,11.6792,149.32,149.28,10.28]
[1727322836375,3.3493,149.31,149.28,10.28]
[1727322840376,3.3493,149.31,149.28,13.6298]
[1727322840575,3.3491,149.32,149.28,13.6298]
[1727322841479,10.28,149.32,149.27,3.35]
[1727322842575,3.3496,149.3,149.26,3.3503]
[1727322842877,10.28,149.31,149.26,10.28]
[1727322843277,13.6298,149.29,149.25,13.6305]
[1727322843479,10.28,149.29,149.22,134.41309947]
[1727322843673,10.28,149.29,149.24,10.28]
[1727322843877,3.35,149.28,149.24,13.6306]
[1727322845381,3.35,149.28,149.24,3.3506]
[1727322845576,3.3501,149.27,149.23,3.3509]
[1727322845776,3.3501,149.27,149.23,13.6309]
[1727322845978,3.3503,149.26,149.23,13.6309]
[1727322846176,10.28,149.28,149.23,13.6309]
[1727322846671,3.3503,149.26,149.23,13.6309]
[1727322847476,3.3093128,149.32,149.23,10.28]
[1727322847682,1.4089,149.35,149.28,10.28]
[1727322847896,10.28,149.33,149.28,10.28]
[1727322848077,10.28,149.31,149.27,10.28]
[1727322848278,10.28,149.29,149.22,134.41309947]
[1727322848486,10.28,149.29,149.24,10.28]
[1727322848781,3.3502,149.27,149.24,13.6307]
[1727322849885,3.3502,149.27,149.25,10.28]
[1727322853585,10.28,149.3,149.26,10.28]
[1727322854188,3.3497,149.29,149.26,10.28]
[1727322854589,10.28,149.3,149.26,10.28]
[1727322854789,3.3497,149.29,149.26,10.28]
[1727322858490,3.3497,149.29,149.25,3.3504]
[1727322858691,3.3497,149.29,149.26,10.28]
[1727322859490,3.3499,149.28,149.26,10.28]
[1727322860190,3.3497,149.29,149.26,10.28]
[1727322861790,3.3497,149.29,149.26,13.6303]
[1727322862392,3.3497,149.29,149.26,3.3503]
[1727322862591,3.3497,149.29,149.26,10.28]
[1727322863596,3.3497,149.29,149.26,13.6303]
[1727322865192,3.3495,149.3,149.26,13.6303]
[1727322865992,3.3497,149.29,149.26,3.3503]
[1727322866490,3.3497,149.29,149.25,10.28]
[1727322866687,3.3497,149.29,149.25,13.6305]
[1727322867295,3.3497,149.29,149.25,3.3505]
[1727322868793,3.3497,149.29,149.25,13.6305]
[1727322870997,3.3497,149.29,149.26,3.3503]
[1727322871699,3.3497,149.29,149.26,13.6303]
[1727322872202,3.3495,149.3,149.27,3.3501]
[1727322878601,3.3495,149.3,149.26,13.6302]
[1727322880904,3.3493,149.31,149.27,3.3499]
[1727322881106,3.3493,149.31,149.26,10.28]
[1727322881605,3.3493,149.31,149.27,3.35]
[1727322884608,13.6293,149.31,149.27,3.35]
[1727322885307,3.3493,149.31,149.27,3.35]
[1727322885502,13.6293,149.31,149.27,3.35]
[1727322887104,3.3494,149.3,149.27,3.35]
[1727322887512,3.3494,149.3,149.26,13.6302]
[1727322897410,3.3494,149.3,149.27,10.28]
[1727322900420,3.3497,149.29,149.26,3.3502]
[1727322900615,3.3497,149.29,149.26,13.6302]
[1727322901319,10.28,149.31,149.27,13.63]
[1727322901523,10.28,149.33,149.28,10.28]
[1727322901920,3.3493,149.31,149.28,10.28]
[1727322902420,3.3493,149.31,149.28,13.6298]
[1727322903021,10.96153302,149.34,149.3,10.28]
[1727322903227,3.36773996,149.37,149.33,10.28]
[1727322903526,3.36773996,149.37,149.34,10.28]
[1727322904026,10.28,149.35,149.32,10.28]
[1727322904326,1.3882,149.38,149.33,10.28]
[1727322904621,11.6682,149.38,149.33,10.28]
[1727322905026,3.3483,149.35,149.32,10.28]
[1727322907024,1.3882,149.38,149.33,10.28]
[1727322907223,11.6682,149.38,149.33,10.28]
[1727322908020,3.348,149.37,149.34,10.28]
[1727322908228,11.6682,149.38,149.34,10.28]
[1727322908930,3.3481,149.36,149.34,10.28]
[1727322910334,3.3479,149.37,149.35,10.28]
[1727322910629,10.28,149.4,149.35,10.28]
[1727322912330,3.3478,149.38,149.35,10.28]
[1727322912733,10.28,149.4,149.35,10.28]
[1727322912934,21.22096669,149.4,149.35,10.28]
[1727322913233,3.3478,149.37,149.35,10.28]
[1727322914235,3.3477,149.38,149.35,10.28]
[1727322915838,3.3475,149.39,149.37,10.28]
[1727322918041,3.3476,149.38,149.36,10.28]
[1727322923038,3.3478,149.37,149.36,10.28]
[1727322928746,3.3481,149.36,149.34,10.28]
[1727322929342,3.3479,149.37,149.35,10.28]
[1727322944161,3.3479,149.37,149.34,10.28]
[1727322951568,3.3481,149.36,149.33,13.6286]
[1727322953171,10.28,149.39,149.29,132.97043373]
[1727322953172,10.28,149.37,149.29,132.97043373]
[1727322953477,3.30396757,149.39,149.31,10.28]
[1727322953478,10.28,149.36,149.31,10.28]
[1727322953773,3.3488,149.33,149.31,10.28]
[1727322958674,3.349,149.32,149.29,55.94003373]
[1727322958875,3.349,149.32,149.31,10.28]
[1727322959567,10.28,149.34,149.29,62.87043373]
[1727322959771,10.28,149.33,149.29,52.59043373]
[1727322959972,10.28,149.32,149.29,52.59043373]
[1727322960576,3.3494,149.3,149.29,52.59043373]
[1727322962282,3.3494,149.3,149.29,62.87043373]
[1727322965889,3.31502099,149.37,149.29,62.87043373]
[1727322966091,10.28,149.38,149.32,10.28]
[1727322966293,13.71230195,149.38,149.32,10.28]
[1727322966893,3.3486,149.34,149.32,10.28]
[1727322967387,3.3486,149.34,149.31,10.28]
[1727322971898,1.4005,149.4,149.33,10.28]
[1727322972093,10.28,149.39,149.35,10.28]
[1727322972294,3.3483,149.36,149.35,10.28]
[1727322973097,3.3483,149.35,149.34,10.28]
[1727322975400,3.3482,149.36,149.34,10.28]
[1727322977296,3.3482,149.36,149.33,10.28]
[1727322977491,10.28,149.37,149.33,10.28]
[1727322977492,3.3483,149.35,149.33,10.28]
[1727322977896,3.3483,149.35,149.32,10.28]
[1727322980901,3.3483,149.35,149.31,3.3491]
[1727322981097,3.3483,149.35,149.33,10.28]
[1727322988928,3.3483,149.35,149.31,3.3491]
[1727322989103,3.3483,149.35,149.32,10.28]
[1727322992019,10.93673451,149.38,149.34,10.28]
[1727322992217,13.61009104,149.39,149.35,10.28]
[1727322992707,3.348,149.37,149.35,10.28]
[1727322993104,3.33009104,149.39,149.35,10.28]
[1727322993413,3.33009104,149.39,149.29,52.59043373]
[1727322993414,1.4005,149.4,149.38,10.28]
[1727322993613,1.4005,149.4,149.3,1.4103]
[1727322993614,1.4005,149.4,149.37,10.28]
[1727322994316,3.3476,149.38,149.37,10.28]
[1727322995517,3.3476,149.38,149.3,1.4103]
[1727322995712,3.3476,149.38,149.35,10.28]
[1727322997113,3.3479,149.37,149.35,10.28]
[1727322998514,3.3481,149.36,149.35,10.28]
[1727323006125,3.3481,149.36,149.32,3.3489]
[1727323006126,3.3481,149.36,149.34,10.28]
[1727323007927,3.3481,149.36,149.32,3.3489]
[1727323008128,3.3483,149.35,149.34,10.28]
[1727323008324,3.3483,149.35,149.33,10.28]
[1727323015131,3.3483,149.35,149.34,10.28]
[1727323018224,3.3485,149.34,149.32,3.349]
[1727323018427,3.3485,149.34,149.33,10.28]
[1727323018634,3.3485,149.34,149.32,3.349]
[1727323018834,3.3485,149.34,149.33,10.28]
[1727323019738,3.3489,149.33,149.29,52.59043373]
[1727323019935,3.3489,149.33,149.32,10.28]
[1727323020536,3.3489,149.33,149.29,52.59043373]
[1727323020740,3.349,149.32,149.31,10.28]
[1727323024141,10.28,149.33,149.26,80.38]
[1727323024336,10.28,149.33,149.28,10.28]
[1727323025238,3.3496,149.3,149.26,83.7302]
[1727323025637,10.28,149.32,149.27,10.28]
[1727323026038,3.3497,149.29,149.27,10.28]
[1727323026543,10.28,149.32,149.26,80.38]
[1727323026741,10.28,149.32,149.27,10.28]
[1727323027648,10.28,149.31,149.27,10.28]
[1727323028244,13.63790524,149.31,149.27,10.28]
[1727323029548,3.3498,149.29,149.27,10.28]
[1727323030168,3.3499,149.28,149.27,10.28]
[1727323033142,3.3499,149.28,149.24,4.6871]
[1727323033443,3.3499,149.28,149.27,10.28]
[1727323039847,3.3503,149.26,149.2,84.4577]
[1727323040051,10.28,149.28,149.23,10.28]
[1727323040649,3.3505,149.26,149.23,10.28]
[1727323041254,3.3507,149.25,149.23,10.28]
[1727323045358,3.3508,149.24,149.23,10.28]
[1727323046856,3.3506,149.25,149.23,10.28]
[1727323049758,3.3506,149.25,149.22,10.28]
[1727323050659,3.3509,149.24,149.21,10.28]
[1727323053155,3.3509,149.24,149.2,6.0395]
[1727323053363,3.351,149.23,149.21,10.28]
[1727323053858,10.28,149.22,149.05,133.04927883]
[1727323054054,10.28,149.24,149.19,10.28]
[1727323054364,3.3514,149.22,149.19,10.28]
[1727323054558,10.28,149.24,149.19,10.28]
[1727323055166,13.96726674,149.3,149.19,10.28]
[1727323055464,10.28,149.24,149.19,10.28]
[1727323055850,3.3515,149.21,149.19,10.28]
[1727323058958,3.3517,149.2,149.19,10.28]
[1727323062465,3.3517,149.2,149.18,10.28]
[1727323065265,3.3517,149.2,149.16,1.3693]
[1727323065566,3.3517,149.2,149.18,10.28]
[1727323067864,3.3517,149.2,149.17,10.28]
[1727323068969,10.28,149.22,149.17,10.28]
[1727323068970,3.3519,149.19,149.17,10.28]
[1727323073172,3.3519,149.19,149.18,10.28]
[1727323074568,3.3517,149.2,149.18,10.28]
[1727323074763,3.3517,149.2,149.19,10.28]
[1727323074972,13.96726674,149.3,149.15,1.3174]
[1727323074973,10.28,149.21,149.15,1.3174]
[1727323075173,3.3521,149.19,149.17,10.28]
[1727323078769,3.3521,149.19,149.18,10.28]
[1727323082878,3.3521,149.19,149.16,3.3525]
[1727323083075,3.3521,149.19,149.17,10.28]
[1727323083279,3.3521,149.19,149.15,4.6701]
[1727323083479,3.3521,149.19,149.17,10.28]
[1727323083981,3.3521,149.19,149.15,4.6701]
[1727323084184,3.3521,149.19,149.17,10.28]
[1727323086178,10.28,149.25,149.18,10.28]
[1727323086372,10.28,149.25,149.2,10.28]
[1727323087882,3.3516,149.21,149.2,10.28]
[1727323088199,3.3516,149.21,149.19,10.28]
[1727323093283,3.3517,149.2,149.18,10.28]
[1727323093982,3.352,149.19,149.15,4.6701]
[1727323094183,3.352,149.19,149.17,10.28]
[1727323095581,3.3521,149.18,149.17,10.28]
[1727323098086,3.3516,149.21,149.17,10.28]
[1727323098287,3.3516,149.21,149.15,1.3174]
[1727323098288,3.3516,149.21,149.2,10.28]
[1727323100585,7.26826674,149.3,149.2,10.28]
[1727323100791,10.28,149.28,149.24,10.28]
[1727323101492,3.3507,149.25,149.23,10.28]
[1727323104692,3.3508,149.24,149.23,10.28]
[1727323104894,3.3508,149.24,149.22,10.28]
[1727323105395,3.351,149.23,149.22,10.28]
[1727323105594,3.351,149.23,149.21,10.28]
[1727323107190,3.3508,149.24,149.22,10.28]
[1727323108593,3.3508,149.24,149.2,3.3515]
[1727323108594,3.3506,149.25,149.23,10.28]
[1727323108797,5.94386674,149.3,149.24,10.28]
[1727323108990,10.28,149.29,149.25,10.28]
[1727323109291,10.28,149.28,149.24,10.28]
[1727323109795,3.3504,149.26,149.24,10.28]
[1727323110189,10.28,149.27,149.23,10.28]
[1727323110498,3.3507,149.25,149.23,10.28]
[1727323115195,3.3508,149.24,149.21,10.28]
[1727323115394,10.28,149.26,149.2,1.2983]
[1727323115595,10.28,149.25,149.21,10.28]
[1727323115795,3.3508,149.24,149.21,10.28]
[1727323116200,10.28,149.25,149.21,10.28]
[1727323116789,3.3508,149.24,149.21,10.28]
[1727323118210,3.351,149.23,149.21,10.28]
[1727323124804,10.28,149.25,149.2,1.2983]
[1727323124805,3.3512,149.22,149.2,1.2983]
[1727323125106,3.3512,149.22,149.2,11.5783]
[1727323126994,3.3512,149.22,149.2,10.28]
[1727323127200,10.28,149.22,149.18,52.62828275]
[1727323127400,10.28,149.22,149.19,10.28]
[1727323128104,3.3517,149.21,149.19,10.28]
[1727323130404,10.28,149.21,149.14,84.4742]
[1727323130608,10.28,149.21,149.16,10.28]
[1727323131409,3.352,149.19,149.16,10.28]
[1727323131609,3.352,149.19,149.14,84.4742]
[1727323131904,3.352,149.19,149.15,8.03567328]
[1727323132208,3.352,149.19,149.16,10.28]
[1727323133227,3.352,149.19,149.16,13.6326]
[1727323135813,3.352,149.19,149.16,10.28]
[1727323136414,3.3522,149.18,149.16,10.28]
[1727323144012,10.28,149.25,149.17,10.28]
[1727323144215,10.28,149.25,149.21,10.28]
[1727323144615,10.28,149.25,149.14,4.0342]
[1727323144616,0.7113,149.29,149.22,10.28]
[1727323144817,10.28,149.27,149.22,10.28]
[1727323145233,3.3509,149.24,149.22,10.28]
[1727323151518,0.7113,149.29,149.21,10.28]
[1727323151519,3.351,149.23,149.21,10.28]
[1727323153225,3.3508,149.24,149.21,10.28]
[1727323156026,3.3508,149.24,149.21,13.6314]
[1727323156225,3.3506,149.25,149.21,13.6314]
[1727323157222,6.6965,149.36,149.24,10.28]
[1727323157424,10.28,149.29,149.25,10.28]
[1727323158622,3.3503,149.27,149.24,10.28]
[1727323159327,3.3503,149.26,149.24,10.28]
[1727323164721,10.28,149.27,149.22,13.6312]
[1727323165831,3.3506,149.25,149.22,13.6312]
[1727323171535,3.3508,149.24,149.22,13.6312]
[1727323173130,3.3508,149.24,149.22,10.28]
[1727323173337,3.351,149.23,149.21,3.3513]
[1727323173542,3.351,149.23,149.22,10.28]
[1727323175736,10.28,149.26,149.2,4.0325]
[1727323175931,10.28,149.26,149.21,10.28]
[1727323176335,3.3511,149.23,149.21,10.28]
[1727323176738,10.28,149.26,149.21,10.28]
[1727323177543,3.3511,149.23,149.21,10.28]
[1727323179842,3.3512,149.22,149.21,10.28]
[1727323180239,3.3503,149.27,149.21,10.28]
[1727323180445,3.33836008,149.32,149.25,10.28]
[1727323180644,10.28,149.34,149.29,10.28]
[1727323180839,3.3494,149.3,149.29,10.28]
[1727323183051,3.3493,149.31,149.29,10.28]
[1727323191259,3.3494,149.3,149.29,10.28]
[1727323201763,3.3494,149.3,149.28,10.28]
[1727323202764,3.3496,149.29,149.28,10.28]
[1727323203863,3.3499,149.28,149.26,10.28]
[1727323205462,3.3501,149.27,149.24,3.3507]
[1727323205762,3.3501,149.27,149.25,10.28]
[1727323207362,3.3501,149.27,149.26,10.28]
[1727323208867,3.3505,149.26,149.23,3.3509]
[1727323209171,3.3505,149.26,149.25,10.28]
[1727323210360,3.3502,149.27,149.25,10.28]
[1727323210659,3.3502,149.27,149.26,10.28]
[1727323213864,13.64394225,149.29,149.24,10.28]
[1727323214066,10.28,149.29,149.24,10.28]
[1727323214278,10.28,149.29,149.23,3.3509]
[1727323214279,3.3504,149.26,149.23,3.3509]
[1727323214467,3.3504,149.26,149.25,10.28]
[1727323219271,13.619476,149.29,149.21,1.3394]
[1727323219272,10.28,149.27,149.21,1.3394]
[1727323219481,10.28,149.27,149.22,10.28]
[1727323220885,10.28,149.28,149.23,10.28]
[1727323221385,3.3507,149.25,149.23,10.28]
[1727323222684,3.3508,149.24,149.23,10.28]
[1727323222887,10.28,149.26,149.22,10.28]
[1727323223184,10.28,149.25,149.2,1.3577]
[1727323223485,10.28,149.25,149.2,11.6377]
[1727323223785,3.3513,149.22,149.2,11.6377]
[1727323224421,3.3513,149.22,149.21,10.28]
[1727323225084,10.28,149.27,149.21,10.28]
[1727323225390,10.28,149.27,149.23,10.28]
[1727323225984,13.59645263,149.27,149.23,10.28]
[1727323226184,13.59645263,149.27,149.22,10.28]
[1727323226592,3.3509,149.24,149.22,10.28]
[1727323229088,3.3509,149.24,149.21,10.28]
[1727323229891,10.28,149.25,149.2,11.6377]
[1727323230087,10.28,149.24,149.19,3.3518]
[1727323230289,10.28,149.24,149.19,13.6318]
[1727323231087,3.3512,149.22,149.19,13.6318]
[1727323232886,3.3512,149.22,149.2,10.28]
[1727323245401,3.3512,149.22,149.19,13.6318]
[1727323248998,3.3512,149.22,149.2,10.28]
[1727323251404,3.3512,149.22,149.19,13.6317]
[1727323255109,3.3512,149.22,149.21,10.28]
[1727323257907,3.4469,149.31,149.21,13.6314]
[1727323258112,10.28,149.27,149.22,10.28]
[1727323258311,3.3509,149.24,149.22,10.28]
[1727323259910,3.351,149.23,149.21,10.28]
[1727323263412,3.351,149.23,149.19,13.6318]
[1727323263413,3.3513,149.22,149.19,13.6318]
[1727323265116,3.3513,149.22,149.2,10.28]
[1727323276222,3.3511,149.23,149.2,13.6316]
[1727323276821,3.3511,149.23,149.21,10.28]
[1727323283532,3.3512,149.22,149.2,10.28]
[1727323302043,3.3516,149.21,149.16,1.3814]
[1727323302345,10.28,149.2,149.15,11.5793]
[1727323302650,3.3523,149.18,149.15,10.28]
[1727323303244,3.3523,149.18,149.15,13.6327]
[1727323303645,3.3523,149.18,149.16,10.28]
[1727323304245,6.79403522,149.25,149.12,1.3321]
[1727323304246,10.28,149.19,149.12,1.3321]
[1727323304448,10.28,149.19,149.13,10.28]
[1727323304847,10.28,149.19,149.13,13.6331]
[1727323305642,3.3527,149.16,149.13,10.28]
[1727323306449,3.3527,149.16,149.13,13.6332]
[1727323307156,3.3527,149.16,149.13,10.28]
[1727323308748,3.3527,149.16,149.13,13.6332]
[1727323310752,3.3528,149.15,149.12,4.6855]
[1727323310979,3.3528,149.15,149.13,10.28]
[1727323311153,10.28,149.18,149.13,10.28]
[1727323312757,3.3526,149.16,149.13,13.6332]
[1727323314159,3.3526,149.16,149.13,10.28]
[1727323315963,3.3526,149.16,149.13,13.6332]
[1727323330365,10.28,149.14,149.09,1.3748]
[1727323330570,10.28,149.14,149.1,10.28]
[1727323330972,13.6332,149.14,149.11,3.3536]
[1727323333670,3.3532,149.13,149.11,3.3536]
[1727323334175,3.3532,149.13,149.1,13.6338]
[1727323334566,3.3426107,149.16,149.09,1.3748]
[1727323334567,13.6335,149.12,149.09,1.3748]
[1727323334769,13.6335,149.12,149.09,4.7289]
[1727323337181,13.6335,149.12,149.09,3.3541]
[1727323337380,3.3426107,149.16,149.07,116.94214535]
[1727323337381,1.4128,149.15,149.1,10.28]
[1727323337579,10.28,149.16,149.11,10.28]
[1727323337779,10.28,149.15,149.11,10.28]
[1727323337979,10.28,149.15,149.1,10.28]
[1727323338179,3.3533,149.13,149.1,13.6338]
[1727323338691,1.4128,149.23,149.12,10.28]
[1727323338984,10.28,149.17,149.12,10.28]
[1727323339276,3.3527,149.16,149.12,13.6333]
[1727323339983,13.61321716,149.17,149.12,13.6333]
[1727323339984,3.3528,149.15,149.12,13.6333]
[1727323345685,3.3528,149.15,149.12,3.3533]
[1727323346286,10.28,149.13,148.96,90.32845322]
[1727323346486,10.28,149.13,149.08,10.28]
[1727323346788,1.3399,149.16,149.11,10.28]
[1727323347089,3.3531,149.14,149.11,10.28]
[1727323347283,10.28,149.15,149.04,1.4098]
[1727323347479,3.3535,149.12,149.1,10.28]
[1727323347878,3.3531,149.14,149.11,10.28]
[1727323348086,4.72847507,149.16,149.11,10.28]
[1727323349787,3.3532,149.13,149.11,10.28]
[1727323351388,6.7017,149.24,149.12,10.28]
[1727323351589,10.28,149.18,149.14,10.28]
[1727323351790,3.353,149.15,149.13,10.28]
[1727323352989,10.28,149.16,149.09,1.2869]
[1727323353189,10.28,149.16,149.11,10.28]
[1727323353584,3.3534,149.13,149.11,10.28]
[1727323353991,3.3531,149.14,149.11,10.28]
[1727323355797,3.3531,149.14,149.11,13.6336]
[1727323356292,3.3531,149.14,149.11,10.28]
[1727323356490,10.28,149.15,149.1,10.28]
[1727323357790,3.3534,149.13,149.1,10.28]
[1727323357990,3.3534,149.13,149.1,13.6339]
[1727323359394,10.28,149.15,149.09,1.2869]
[1727323359595,3.40612819,149.17,149.09,11.5669]
[1727323359795,10.28,149.14,149.09,11.5669]
[1727323359995,3.34428984,149.13,149.09,11.5669]
[1727323360641,13.62428984,149.13,149.09,1.2869]
[1727323360798,3.3538,149.11,149.09,1.2869]
[1727323361197,3.3538,149.11,149.08,1.3429]
[1727323361396,10.28,149.12,149.07,10.28]
[1727323361595,10.28,149.11,149.07,10.28]
[1727323361894,1.9987,149.19,149.1,10.28]
[1727323362095,10.28,149.15,149.11,10.28]
[1727323362302,13.60628535,149.15,149.11,10.28]
[1727323363902,3.3535,149.12,149.11,10.28]
[1727323364601,3.3535,149.12,149.1,10.28]
[1727323365996,3.3537,149.11,149.1,10.28]
[1727323366898,3.3537,149.11,149.08,10.28]
[1727323367601,3.354,149.1,149.08,10.28]
[1727323368696,3.354,149.1,149.07,3.3545]
[1727323369000,3.354,149.1,149.08,10.28]
[1727323371603,3.354,149.1,149.07,3.3545]
[1727323371902,3.354,149.1,149.07,10.28]
[1727323372603,3.354,149.1,149.05,4.0245]
[1727323372805,3.354,149.1,149.08,10.28]
[1727323377009,3.32628535,149.15,149.09,10.28]
[1727323377204,10.28,149.15,149.1,10.28]
[1727323377503,3.35748815,149.14,149.1,10.28]
[1727323378901,3.3535,149.12,149.1,10.28]
[1727323379504,3.3533,149.13,149.1,13.6338]
[1727323381404,3.3533,149.13,149.1,10.28]
[1727323381609,3.3536,149.12,149.09,13.6341]
[1727323387611,3.3538,149.11,149.08,10.28]
[1727323388205,10.28,149.11,149.06,14.96240608]
[1727323388702,3.3543,149.09,149.06,18.31700608]
[1727323390707,3.3543,149.09,149.07,13.6346]
[1727323391005,3.3539,149.1,149.07,13.6346]